[Event "Nové Hrady - Open"]
[Site "Nové Hrady, Czech Republic"]
[Date "2023.08.18"]
[Round "6.1"]
[White "Žilavý, Jan"]
[Black "Urban, Zdeněk"]
[Result "1/2-1/2"]
[TimeControl "2x90min+30s"]
[WhiteFideId "350141"]
[BlackFideId "312754"]
[WhiteElo "2130"]
[BlackElo "2118"]

1. e4 {[%clk 01:30:55]} {[%emt 00:00:04]} d6 {[%clk 01:30:55]} {[%emt
00:00:06]} 2. d4 {[%clk 01:31:18]} {[%emt 00:00:07]} Nf6 {[%clk 01:31:21]}
{[%emt 00:00:04]} 3. Nc3 {[%clk 01:31:40]} {[%emt 00:00:08]} e5 {[%clk
01:31:47]} {[%emt 00:00:04]} 4. dxe5 {[%clk 01:29:40]} {[%emt 00:02:30]} dxe5
{[%clk 01:32:15]} {[%emt 00:00:03]} 5. Qxd8+ {[%clk 01:29:06]} {[%emt
00:01:03]} Kxd8 {[%clk 01:32:42]} {[%emt 00:00:03]} 6. Bg5 {[%clk 01:27:52]}
{[%emt 00:01:45]} Be6 {[%clk 01:32:58]} {[%emt 00:00:13]} 7. Nf3 {[%clk
01:27:16]} {[%emt 00:01:06]} Bd6 {[%clk 01:32:32]} {[%emt 00:00:55]} 8. Nb5
{[%clk 01:25:17]} {[%emt 00:02:30]} Ke7 {[%clk 01:32:08]} {[%emt 00:00:54]} 9.
Nxd6 {[%clk 01:23:44]} {[%emt 00:02:05]} cxd6 {[%clk 01:32:35]} 10. O-O-O
{[%clk 01:18:45]} {[%emt 00:05:29]} Rc8 {[%clk 01:32:45]} {[%emt 00:00:19]} 11.
Kb1 {[%clk 01:14:21]} {[%emt 00:04:55]} Nbd7 {[%clk 01:32:52]} {[%emt
00:00:22]} 12. Nh4 {[%clk 01:04:36]} {[%emt 00:10:16]} h6 {[%clk 01:26:58]}
{[%emt 00:06:23]} 13. Bxf6+ {[%clk 01:04:09]} {[%emt 00:00:57]} Nxf6 {[%clk
01:27:04]} {[%emt 00:00:25]} 14. f3 {[%clk 01:01:57]} {[%emt 00:02:42]} g6
{[%clk 01:26:10]} {[%emt 00:01:23]} 15. Bd3 {[%clk 01:00:43]} {[%emt 00:01:45]}
Nd7 {[%clk 01:18:36]} {[%emt 00:08:03]} 16. g3 {[%clk 00:58:32]} {[%emt
00:02:41]} Rc5 {[%clk 01:15:28]} {[%emt 00:03:39]} 17. Ng2 {[%clk 00:55:03]}
{[%emt 00:03:59]} b5 {[%clk 01:14:30]} {[%emt 00:01:27]} 18. Ne3 {[%clk
00:53:01]} {[%emt 00:02:33]} b4 {[%clk 01:14:13]} {[%emt 00:00:46]} 19. f4
{[%clk 00:51:52]} {[%emt 00:01:39]} f6 {[%clk 01:13:06]} {[%emt 00:01:36]} 20.
h4 {[%clk 00:48:55]} {[%emt 00:03:29]} Rg8 {[%clk 01:11:36]} {[%emt 00:01:59]}
21. Rdg1 {[%clk 00:42:35]} {[%emt 00:06:50]} Ra5 {[%clk 01:11:09]} {[%emt
00:00:57]} 22. Bc4 {[%clk 00:41:09]} {[%emt 00:01:58]} Bxc4 {[%clk 01:10:25]}
{[%emt 00:01:13]} 23. Nxc4 {[%clk 00:41:36]} {[%emt 00:00:03]} Rc5 {[%clk
01:10:32]} {[%emt 00:00:22]} 24. Ne3 {[%clk 00:41:41]} {[%emt 00:00:25]} Nb6
{[%clk 01:10:25]} {[%emt 00:00:37]} 25. f5 {[%clk 00:39:11]} {[%emt 00:03:01]}
Nc4 {[%clk 01:06:25]} {[%emt 00:04:31]} 26. Nd5+ {[%clk 00:36:23]} {[%emt
00:03:17]} Kf7 {[%clk 01:05:27]} {[%emt 00:01:27]} 27. fxg6+ {[%clk 00:36:13]}
{[%emt 00:00:41]} Rxg6 {[%clk 01:05:24]} {[%emt 00:00:32]} 28. Rh2 {[%clk
00:35:52]} {[%emt 00:00:51]} a5 {[%clk 01:04:53]} {[%emt 00:01:01]} 29. Rf2
{[%clk 00:35:06]} {[%emt 00:01:17]} h5 {[%clk 01:04:24]} {[%emt 00:00:59]} 30.
Kc1 {[%clk 00:31:35]} {[%emt 00:04:01]} Rxd5 {[%clk 01:02:27]} {[%emt
00:02:27]} 31. exd5 {[%clk 00:32:01]} {[%emt 00:00:04]} Ne3 {[%clk 01:02:30]}
{[%emt 00:00:25]} 32. Rd2 {[%clk 00:21:20]} {[%emt 00:11:12]} f5 {[%clk
01:02:45]} {[%emt 00:00:15]} 33. Rd3 {[%clk 00:18:24]} {[%emt 00:03:28]} f4
{[%clk 01:03:10]} {[%emt 00:00:03]} 34. Kd2 {[%clk 00:18:06]} {[%emt 00:00:48]}
Rxg3 {[%clk 00:58:52]} {[%emt 00:04:48]} 35. Rxg3 {[%clk 00:18:15]} {[%emt
00:00:21]} Nf1+ {[%clk 00:59:10]} {[%emt 00:00:12]} 36. Ke1 {[%clk 00:18:27]}
{[%emt 00:00:18]} Nxg3 {[%clk 00:59:36]} {[%emt 00:00:04]} 37. a3 {[%clk
00:17:31]} {[%emt 00:01:27]} e4 {[%clk 00:58:43]} {[%emt 00:01:22]} 38. Rb3
{[%clk 00:17:45]} {[%emt 00:00:17]} bxa3 {[%clk 00:57:49]} {[%emt 00:01:24]} 39.
Rxa3 {[%clk 00:18:06]} {[%emt 00:00:09]} Kf6 {[%clk 00:57:45]} {[%emt
00:00:33]} 40. Rxa5 {[%clk 00:17:38]} {[%emt 00:00:59]} e3 {[%clk 00:57:42]}
{[%emt 00:00:32]} 41. Ra8 {[%clk 00:17:08]} {[%emt 00:01:01]} Ke5 {[%clk
00:57:52]} {[%emt 00:00:19]} 42. Rg8 {[%clk 00:14:59]} {[%emt 00:02:40]} Kxd5
{[%clk 00:57:44]} {[%emt 00:00:37]} 43. b4 {[%clk 00:14:18]} {[%emt 00:01:12]}
Nf5 {[%clk 00:55:09]} {[%emt 00:03:04]} 44. b5 {[%clk 00:09:12]} {[%emt
00:05:37]} Nd4 {[%clk 00:51:51]} {[%emt 00:03:47]} 45. b6 {[%clk 00:09:25]}
{[%emt 00:00:18]} Kc6 {[%clk 00:51:35]} {[%emt 00:00:46]} 46. c3 {[%clk
00:09:02]} {[%emt 00:00:54]} Nf3+ {[%clk 00:48:41]} {[%emt 00:03:22]} 47. Ke2
{[%clk 00:09:27]} {[%emt 00:00:05]} Nxh4 {[%clk 00:49:03]} {[%emt 00:00:08]} 48.
Rg5 {[%clk 00:09:33]} {[%emt 00:00:25]} Kxb6 {[%clk 00:48:19]} {[%emt
00:01:13]} 49. Rxh5 {[%clk 00:09:57]} {[%emt 00:00:07]} Ng6 {[%clk 00:48:25]}
{[%emt 00:00:21]} 50. Rh6 {[%clk 00:09:35]} {[%emt 00:00:54]} Ne5 {[%clk
00:48:34]} {[%emt 00:00:21]} 51. Rxd6+ {[%clk 00:09:58]} {[%emt 00:00:07]} Kc5
{[%clk 00:49:03]} {[%emt 00:00:02]} 52. Rd4 {[%clk 00:09:59]} {[%emt 00:00:29]}
Ng6 {[%clk 00:48:40]} {[%emt 00:00:51]} 53. Re4 {[%clk 00:08:38]} {[%emt
00:01:53]} Kd5 {[%clk 00:48:48]} {[%emt 00:00:20]} 54. Kf3 {[%clk 00:08:38]}
{[%emt 00:00:31]} Kd6 {[%clk 00:45:42]} {[%emt 00:03:35]} 55. Re8 {[%clk
00:07:32]} {[%emt 00:01:37]} Kd5 {[%clk 00:44:57]} {[%emt 00:01:15]} 56. Re4
{[%clk 00:04:41]} {[%emt 00:03:22]} Kd6 {[%clk 00:37:15]} {[%emt 00:08:12]} 57.
Kg4 {[%clk 00:05:09]} Kd5 {[%clk 00:36:08]} {[%emt 00:01:39]} 58. Kf5 {[%clk
00:05:19]} {[%emt 00:00:20]} f3 {[%clk 00:35:30]} {[%emt 00:01:07]} 59. Rxe3
{[%clk 00:05:43]} {[%emt 00:00:07]} Nh4 {[%clk 00:33:05]} {[%emt 00:02:53]} 60.
Kg4 {[%clk 00:06:12]} f2 {[%clk 00:33:11]} {[%emt 00:00:27]} 61. Rd3+ {[%clk
00:06:41]} Ke4 {[%clk 00:33:09]} {[%emt 00:00:33]} 62. Rd1 {[%clk 00:07:06]}
{[%emt 00:00:05]} Nf5 {[%clk 00:30:04]} {[%emt 00:03:33]} 63. Rc1 {[%clk
00:05:17]} {[%emt 00:02:20]} Ke5 {[%emt 00:02:34]} 1/2-1/2

[Event "Nové Hrady - Open"]
[Site "Nové Hrady, Czech Republic"]
[Date "2023.08.18"]
[Round "6.2"]
[White "Bosák, Jan"]
[Black "Šimůnek, Jakub Šimon"]
[Result "1/2-1/2"]
[TimeControl "2x90min+30s"]
[WhiteFideId "314692"]
[BlackFideId "23709464"]
[WhiteElo "2082"]
[BlackElo "1921"]

1. Nf3 {[%clk 01:30:56]} {[%emt 00:00:03]} d5 {[%clk 01:30:54]} {[%emt
00:00:08]} 2. d4 {[%clk 01:31:15]} {[%emt 00:00:10]} Nf6 {[%clk 01:31:17]}
{[%emt 00:00:07]} 3. c4 {[%clk 01:31:23]} {[%emt 00:00:22]} c6 {[%clk
01:31:35]} {[%emt 00:00:12]} 4. Nc3 {[%clk 01:31:27]} {[%emt 00:00:26]} e6
{[%clk 01:31:55]} {[%emt 00:00:10]} 5. Bg5 {[%clk 01:30:46]} {[%emt 00:01:10]}
Nbd7 {[%clk 01:32:16]} {[%emt 00:00:10]} 6. e3 {[%clk 01:30:12]} {[%emt
00:01:04]} Qa5 {[%clk 01:32:28]} {[%emt 00:00:18]} 7. Nd2 {[%clk 01:28:47]}
{[%emt 00:01:55]} Bb4 {[%clk 01:32:46]} {[%emt 00:00:12]} 8. Qc2 {[%clk
01:28:41]} {[%emt 00:00:36]} dxc4 {[%clk 01:32:35]} {[%emt 00:00:41]} 9. Bxf6
{[%clk 01:28:32]} {[%emt 00:00:39]} Nxf6 {[%clk 01:32:59]} {[%emt 00:00:06]} 10.
Nxc4 {[%clk 01:28:37]} {[%emt 00:00:24]} Qc7 {[%clk 01:33:23]} {[%emt
00:00:07]} 11. a3 {[%clk 01:28:25]} {[%emt 00:00:43]} Be7 {[%clk 01:31:31]}
{[%emt 00:02:21]} 12. Be2 {[%clk 01:26:09]} {[%emt 00:02:45]} Bd7 {[%clk
01:28:50]} {[%emt 00:03:12]} 13. Ne5 {[%clk 01:11:15]} {[%emt 00:15:24]} Rc8
{[%clk 01:28:58]} {[%emt 00:00:23]} 14. Rc1 {[%clk 01:10:48]} {[%emt 00:00:56]}
Bd6 {[%clk 01:22:11]} {[%emt 00:07:17]} 15. Nxd7 {[%clk 01:08:10]} {[%emt
00:03:07]} Nxd7 {[%clk 01:22:35]} {[%emt 00:00:08]} 16. Ne4 {[%clk 01:06:53]}
{[%emt 00:01:46]} O-O {[%clk 01:21:47]} {[%emt 00:01:18]} 17. Nxd6 {[%clk
01:06:05]} {[%emt 00:01:18]} Qxd6 {[%clk 01:22:12]} {[%emt 00:00:05]} 18. O-O
{[%clk 01:06:18]} {[%emt 00:00:16]} Rc7 {[%clk 01:19:06]} {[%emt 00:03:36]} 19.
Rfd1 {[%clk 01:03:40]} {[%emt 00:03:09]} Rfc8 {[%clk 01:19:24]} {[%emt
00:00:12]} 20. Qa4 {[%clk 01:02:03]} {[%emt 00:02:06]} b6 {[%clk 01:14:01]}
{[%emt 00:05:54]} 21. Rc3 {[%clk 00:53:09]} {[%emt 00:09:24]} Nf6 {[%clk
01:09:24]} {[%emt 00:05:06]} 22. Rdc1 {[%clk 00:45:23]} {[%emt 00:08:17]} Nd5
{[%clk 01:02:35]} {[%emt 00:07:19]} 23. R3c2 {[%clk 00:45:14]} {[%emt
00:00:38]} a5 {[%clk 01:01:45]} {[%emt 00:01:22]} 24. g3 {[%clk 00:33:31]}
{[%emt 00:12:12]} g6 {[%clk 01:01:04]} {[%emt 00:01:11]} 25. Bf3 {[%clk
00:32:53]} {[%emt 00:01:07]} Ne7 {[%clk 00:50:12]} {[%emt 00:11:23]} 26. Qb3
{[%clk 00:30:47]} {[%emt 00:02:36]} c5 {[%clk 00:47:34]} {[%emt 00:03:07]} 27.
dxc5 {[%clk 00:26:33]} {[%emt 00:04:43]} Rxc5 {[%clk 00:47:59]} {[%emt
00:00:07]} 28. Kg2 {[%emt 00:06:57]} 1/2-1/2

[Event "Nové Hrady - Open"]
[Site "Nové Hrady, Czech Republic"]
[Date "2023.08.18"]
[Round "6.3"]
[White "Babula, Milan"]
[Black "Pospěch, Radim"]
[Result "1-0"]
[TimeControl "2x90min+30s"]
[WhiteFideId "300632"]
[BlackFideId "329835"]
[WhiteElo "2087"]
[BlackElo "1874"]

1. e4 {[%clk 01:30:57]} {[%emt 00:00:02]} c5 {[%clk 01:30:54]} {[%emt
00:00:06]} 2. Nf3 {[%clk 01:31:23]} {[%emt 00:00:04]} e6 {[%clk 01:31:17]}
{[%emt 00:00:07]} 3. d4 {[%clk 01:31:47]} {[%emt 00:00:06]} cxd4 {[%clk
01:31:42]} {[%emt 00:00:06]} 4. Nxd4 {[%clk 01:32:15]} {[%emt 00:00:03]} Nf6
{[%clk 01:31:52]} {[%emt 00:00:19]} 5. Nc3 {[%clk 01:32:31]} {[%emt 00:00:14]}
Nc6 {[%clk 01:32:07]} {[%emt 00:00:14]} 6. Ndb5 {[%clk 01:27:57]} {[%emt
00:05:04]} d6 {[%clk 01:29:55]} {[%emt 00:02:42]} 7. Bf4 {[%clk 01:28:06]}
{[%emt 00:00:22]} e5 {[%clk 01:29:16]} {[%emt 00:01:08]} 8. Bg5 {[%clk
01:28:34]} {[%emt 00:00:02]} a6 {[%clk 01:28:57]} {[%emt 00:00:50]} 9. Na3
{[%clk 01:27:45]} {[%emt 00:01:19]} b5 {[%clk 01:25:25]} {[%emt 00:04:02]} 10.
Nd5 {[%clk 01:26:48]} {[%emt 00:01:27]} Be7 {[%clk 01:24:55]} {[%emt 00:01:00]}
11. Nxe7 {[%clk 01:24:30]} {[%emt 00:02:48]} Qxe7 {[%clk 01:25:05]} {[%emt
00:00:20]} 12. c3 {[%clk 01:17:53]} {[%emt 00:07:07]} O-O {[%clk 01:21:54]}
{[%emt 00:03:40]} 13. Qf3 {[%clk 01:08:18]} {[%emt 00:10:05]} Be6 {[%clk
01:17:04]} {[%emt 00:05:19]} 14. Nc2 {[%clk 01:06:32]} {[%emt 00:02:18]} h6
{[%clk 01:06:25]} {[%emt 00:11:08]} 15. Bxf6 {[%clk 01:05:59]} {[%emt
00:01:02]} Qxf6 {[%clk 01:05:03]} {[%emt 00:01:54]} 16. Qxf6 {[%clk 01:06:23]}
{[%emt 00:00:05]} gxf6 {[%clk 01:05:28]} {[%emt 00:00:06]} 17. Ne3 {[%clk
01:06:38]} {[%emt 00:00:14]} Ne7 {[%clk 01:05:19]} {[%emt 00:00:39]} 18. Bd3
{[%clk 01:03:23]} {[%emt 00:03:45]} Rfd8 {[%clk 00:56:14]} {[%emt 00:09:35]} 19.
Kd2 {[%clk 00:48:27]} {[%emt 00:15:27]} d5 {[%clk 00:54:24]} {[%emt 00:02:19]}
20. exd5 {[%clk 00:46:40]} {[%emt 00:02:18]} Nxd5 {[%clk 00:41:50]} {[%emt
00:13:03]} 21. Nxd5 {[%clk 00:46:34]} {[%emt 00:00:36]} Rxd5 {[%clk 00:41:51]}
{[%emt 00:00:30]} 22. Ke3 {[%clk 00:30:48]} {[%emt 00:16:16]} Rad8 {[%clk
00:32:00]} {[%emt 00:10:20]} 23. Rhd1 {[%clk 00:30:32]} {[%emt 00:00:47]} Kf8
{[%clk 00:28:42]} {[%emt 00:03:47]} 24. Bc2 {[%clk 00:28:42]} {[%emt 00:02:20]}
Rxd1 {[%clk 00:26:13]} {[%emt 00:02:59]} 25. Bxd1 {[%clk 00:28:49]} {[%emt
00:00:24]} a5 {[%clk 00:22:44]} {[%emt 00:03:58]} 26. Be2 {[%clk 00:27:42]}
{[%emt 00:01:36]} b4 {[%clk 00:20:35]} {[%emt 00:02:40]} 27. cxb4 {[%clk
00:23:35]} {[%emt 00:04:38]} axb4 {[%clk 00:21:03]} 28. a4 {[%clk 00:23:51]}
{[%emt 00:00:14]} bxa3 {[%clk 00:17:44]} {[%emt 00:03:49]} 29. bxa3 {[%clk
00:24:19]} f5 {[%clk 00:15:59]} {[%emt 00:02:16]} 30. g3 {[%clk 00:24:41]}
{[%emt 00:00:08]} Rd4 {[%clk 00:15:17]} {[%emt 00:01:13]} 31. a4 {[%clk
00:24:31]} {[%emt 00:00:40]} Re4+ {[%clk 00:14:43]} {[%emt 00:01:04]} 32. Kd2
{[%clk 00:24:22]} {[%emt 00:00:39]} f4 {[%clk 00:14:50]} {[%emt 00:00:23]} 33.
a5 {[%clk 00:23:08]} {[%emt 00:01:44]} fxg3 {[%clk 00:14:58]} {[%emt 00:00:22]}
34. hxg3 {[%clk 00:23:28]} {[%emt 00:00:09]} Rd4+ {[%clk 00:12:38]} {[%emt
00:02:51]} 35. Kc3 {[%clk 00:21:58]} {[%emt 00:02:00]} Bd5 {[%clk 00:12:01]}
{[%emt 00:01:07]} 36. a6 {[%clk 00:22:17]} {[%emt 00:00:12]} Ke7 {[%clk
00:10:08]} {[%emt 00:02:22]} 37. Rd1 {[%clk 00:18:01]} {[%emt 00:04:46]} Rxd1
{[%clk 00:10:26]} {[%emt 00:00:12]} 38. Bxd1 {[%clk 00:18:30]} {[%emt
00:00:01]} f5 {[%clk 00:09:49]} {[%emt 00:01:07]} 39. Bc2 {[%clk 00:16:49]}
{[%emt 00:02:11]} f4 {[%clk 00:09:51]} {[%emt 00:00:28]} 40. gxf4 {[%clk
00:16:40]} {[%emt 00:00:39]} Kf6 {[%clk 00:09:45]} {[%emt 00:00:35]} 41. fxe5+
{[%clk 00:15:44]} {[%emt 00:01:27]} Kxe5 {[%clk 00:10:14]} 42. Bg6 {[%clk
00:15:56]} {[%emt 00:00:18]} Ba8 {[%clk 00:08:11]} {[%emt 00:02:33]} 43. Kd3
{[%clk 00:14:58]} {[%emt 00:01:29]} Kf4 {[%clk 00:08:18]} {[%emt 00:00:22]} 44.
a7 {[%clk 00:14:10]} {[%emt 00:01:18]} Bb7 {[%clk 00:08:43]} {[%emt 00:00:05]}
45. Kd4 {[%clk 00:14:22]} {[%emt 00:00:19]} Ba8 {[%clk 00:08:44]} {[%emt
00:00:28]} 46. Bf7 {[%clk 00:14:44]} {[%emt 00:00:08]} 1-0

[Event "Nové Hrady - Open"]
[Site "Nové Hrady, Czech Republic"]
[Date "2023.08.18"]
[Round "6.4"]
[White "Slabý, Matěj"]
[Black "Garabik, Marek"]
[Result "1-0"]
[TimeControl "2x90min+30s"]
[WhiteFideId "23734876"]
[BlackFideId "23717742"]
[WhiteElo "1894"]
[BlackElo "1738"]

1. e4 {[%clk 01:30:54]} {[%emt 00:00:06]} e6 {[%clk 01:30:53]} {[%emt
00:00:07]} 2. d4 {[%clk 01:31:17]} {[%emt 00:00:07]} d5 {[%clk 01:31:14]}
{[%emt 00:00:10]} 3. e5 {[%clk 01:31:42]} {[%emt 00:00:05]} c5 {[%clk
01:31:42]} {[%emt 00:00:02]} 4. c3 {[%clk 01:32:04]} {[%emt 00:00:07]} Bd7
{[%clk 01:32:05]} {[%emt 00:00:08]} 5. Nf3 {[%clk 01:31:55]} {[%emt 00:00:39]}
Qb6 {[%clk 01:31:54]} {[%emt 00:00:41]} 6. Be2 {[%clk 01:29:35]} {[%emt
00:02:49]} Bb5 {[%clk 01:30:58]} {[%emt 00:01:27]} 7. O-O {[%clk 01:29:39]}
{[%emt 00:00:26]} Bxe2 {[%clk 01:31:15]} {[%emt 00:00:12]} 8. Qxe2 {[%clk
01:30:02]} {[%emt 00:00:07]} Qa6 {[%clk 01:31:44]} 9. Re1 {[%clk 01:28:45]}
{[%emt 00:01:47]} Qxe2 {[%clk 01:30:46]} {[%emt 00:01:29]} 10. Rxe2 {[%clk
01:29:09]} {[%emt 00:00:05]} Nd7 {[%clk 01:31:06]} {[%emt 00:00:11]} 11. Be3
{[%clk 01:26:09]} {[%emt 00:03:29]} cxd4 {[%clk 01:31:14]} {[%emt 00:00:22]} 12.
cxd4 {[%clk 01:26:32]} {[%emt 00:00:07]} Ne7 {[%clk 01:31:15]} {[%emt
00:00:29]} 13. Nc3 {[%clk 01:25:31]} {[%emt 00:01:30]} Nc6 {[%clk 01:27:51]}
{[%emt 00:03:56]} 14. a3 {[%clk 01:25:10]} {[%emt 00:00:50]} Be7 {[%clk
01:26:33]} {[%emt 00:01:47]} 15. b4 {[%clk 01:16:42]} {[%emt 00:09:00]} Nb6
{[%clk 01:26:08]} {[%emt 00:00:55]} 16. Rc2 {[%clk 01:15:34]} {[%emt 00:01:38]}
Rc8 {[%clk 01:24:23]} {[%emt 00:02:14]} 17. Nd2 {[%clk 01:12:36]} {[%emt
00:03:27]} Kd7 {[%clk 01:24:21]} {[%emt 00:00:34]} 18. Ne2 {[%clk 01:05:43]}
{[%emt 00:07:21]} f6 {[%clk 01:22:33]} {[%emt 00:02:20]} 19. f4 {[%clk
01:05:08]} {[%emt 00:01:05]} g5 {[%clk 01:10:23]} {[%emt 00:12:40]} 20. g3
{[%clk 00:51:49]} {[%emt 00:13:48]} Rhg8 {[%clk 01:09:29]} {[%emt 00:01:24]} 21.
Kh1 {[%clk 00:46:14]} {[%emt 00:06:05]} gxf4 {[%clk 01:08:39]} {[%emt
00:01:20]} 22. gxf4 {[%clk 00:46:38]} {[%emt 00:00:06]} fxe5 {[%clk 01:09:07]}
{[%emt 00:00:03]} 23. dxe5 {[%clk 00:45:58]} {[%emt 00:01:09]} Rcf8 {[%clk
01:07:28]} {[%emt 00:02:09]} 24. Rg1 {[%clk 00:42:14]} {[%emt 00:04:14]} Rxg1+
{[%clk 01:06:07]} {[%emt 00:01:51]} 25. Bxg1 {[%clk 00:42:34]} {[%emt
00:00:09]} Bd8 {[%clk 01:02:08]} {[%emt 00:04:29]} 26. Rc3 {[%clk 00:42:01]}
{[%emt 00:01:04]} Be7 {[%clk 01:00:14]} {[%emt 00:02:25]} 27. Rh3 {[%clk
00:34:43]} {[%emt 00:07:48]} Rf7 {[%clk 00:59:51]} {[%emt 00:00:52]} 28. Kg2
{[%clk 00:34:09]} {[%emt 00:01:03]} Bd8 {[%clk 00:58:27]} {[%emt 00:01:55]} 29.
Bf2 {[%clk 00:29:59]} {[%emt 00:04:39]} Nc8 {[%clk 00:56:22]} {[%emt 00:02:37]}
30. Nb3 {[%clk 00:28:53]} {[%emt 00:01:36]} Bb6 {[%clk 00:55:35]} {[%emt
00:01:16]} 31. Bxb6 {[%clk 00:27:02]} {[%emt 00:02:21]} axb6 {[%clk 00:54:49]}
{[%emt 00:01:16]} 32. b5 {[%clk 00:25:25]} {[%emt 00:02:08]} N6e7 {[%clk
00:53:45]} {[%emt 00:01:34]} 33. Nbd4 {[%clk 00:23:58]} {[%emt 00:01:57]} Ng6
{[%clk 00:53:38]} {[%emt 00:00:36]} 34. f5 {[%clk 00:22:16]} {[%emt 00:02:12]}
Nf8 {[%clk 00:50:38]} {[%emt 00:03:30]} 35. Nf4 {[%clk 00:20:14]} {[%emt
00:02:32]} Rg7+ {[%clk 00:50:40]} {[%emt 00:00:28]} 36. Kf3 {[%clk 00:20:29]}
{[%emt 00:00:15]} exf5 {[%clk 00:50:45]} {[%emt 00:00:25]} 37. Nxf5 {[%clk
00:19:08]} {[%emt 00:01:51]} Rg5 {[%clk 00:50:26]} {[%emt 00:00:49]} 38. e6+
{[%clk 00:18:01]} {[%emt 00:01:37]} Nxe6 {[%clk 00:46:53]} {[%emt 00:04:03]} 39.
Rxh7+ {[%clk 00:18:23]} {[%emt 00:00:08]} Ke8 {[%clk 00:47:21]} 40. Nxe6 {[%clk
00:15:50]} {[%emt 00:03:06]} Rxf5+ {[%clk 00:46:56]} {[%emt 00:00:54]} 41. Kg4
{[%clk 00:16:10]} {[%emt 00:00:09]} Re5 {[%clk 00:45:23]} {[%emt 00:02:03]} 42.
Nf4 {[%clk 00:14:50]} {[%emt 00:01:51]} Ne7 {[%clk 00:45:24]} {[%emt 00:00:29]}
43. Rh6 {[%clk 00:13:57]} {[%emt 00:01:23]} Nc8 {[%clk 00:41:34]} {[%emt
00:04:20]} 44. Re6+ {[%clk 00:12:32]} {[%emt 00:01:55]} Rxe6 {[%clk 00:42:01]}
{[%emt 00:00:03]} 45. Nxe6 {[%clk 00:12:57]} {[%emt 00:00:04]} Kd7 {[%clk
00:39:29]} {[%emt 00:03:03]} 46. Nf4 {[%clk 00:13:18]} {[%emt 00:00:09]} Nd6
{[%clk 00:38:01]} {[%emt 00:01:58]} 47. a4 {[%clk 00:13:03]} {[%emt 00:00:46]}
d4 {[%clk 00:38:08]} {[%emt 00:00:22]} 48. h4 {[%clk 00:13:07]} {[%emt
00:00:26]} Ne4 {[%clk 00:38:19]} {[%emt 00:00:19]} 49. Kf5 {[%clk 00:12:43]}
{[%emt 00:00:54]} Nc5 {[%clk 00:35:57]} {[%emt 00:02:52]} 50. h5 {[%clk
00:12:59]} {[%emt 00:00:14]} Ke8 {[%clk 00:36:04]} {[%emt 00:00:23]} 51. Kg6
{[%clk 00:04:10]} {[%emt 00:09:19]} Kf8 {[%clk 00:36:33]} 52. h6 {[%clk
00:04:14]} {[%emt 00:00:27]} Kg8 {[%clk 00:37:02]} 53. h7+ {[%clk 00:04:25]}
{[%emt 00:00:20]} Kh8 {[%clk 00:37:31]} {[%emt 00:00:02]} 54. Kh6 {[%emt
00:02:14]} 1-0